lending/lending_fUSD_20240111
["ID","MTS","AMOUNT","RATE_DAILY","PERIOD"]
[311272709,1705008651322,-6550.586423,0.00041096,2]
[311272710,1705008651332,-157.54,0.000411,4]
[311272711,1705008651341,-157.54,0.000411,4]
[311272712,1705008651350,-157.54,0.000411,4]
[311272713,1705008651360,-157.54,0.000411,4]
[311272714,1705008651369,-157.54,0.000411,4]
[311272715,1705008651378,-157.54,0.000411,4]
[311272716,1705008651391,-2000.0,0.000411,2]
[311272717,1705008651401,-8000.0,0.000411,5]
[311272718,1705008651411,-1581.31,0.000411,4]
[311272719,1705008651420,-1581.31,0.000411,4]
[311272720,1705008651430,-1581.31,0.000411,4]
[311272721,1705008651439,-1581.31,0.000411,4]
[311272722,1705008651449,-1581.31,0.000411,4]
[311272723,1705008651458,-1581.31,0.000411,4]
[311272724,1705008651468,-1581.31,0.000411,4]
[311272725,1705008651477,-1581.31,0.000411,4]
[311272726,1705008651487,-1581.31,0.000411,4]
[311272727,1705008651497,-1581.31,0.000411,4]
[311272728,1705008651506,-1581.31,0.000411,4]
[311272729,1705008651515,-1581.31,0.000411,4]
[311272730,1705008651525,-1581.31,0.000411,4]
[311272731,1705008651535,-1581.31,0.000411,4]
[311272732,1705008651544,-1581.31,0.000411,4]
[311272733,1705008651554,-1581.31,0.000411,4]
[311272734,1705008651563,-1241.82943434,0.000411,4]
[311272735,1705008651613,-339.48056566,0.000411,4]
[311272736,1705008651623,-1581.31,0.000411,4]
[311272737,1705008651633,-1581.31,0.000411,4]
[311272738,1705008651643,-1581.31,0.000411,4]
[311272739,1705008651652,-1000.0,0.000411,2]
[311272740,1705008651661,-500.0,0.00041136,14]
[311272741,1705008651671,-2648.35329845,0.00041141,15]
[311272742,1705008651680,-500.0,0.0004115,2]
[311272743,1705008651689,-1479.51,0.00041163,60]
[311272744,1705008651699,-500.0,0.00041205,2]
[311272745,1705008651709,-1023.72283719,0.00041216,5]
[311272746,1705008651718,-1003.43008904,0.00041231,10]
[311272747,1705008651728,-168.89,0.00041243,2]
[311272748,1705008651737,-500.0,0.0004126,2]
[311272749,1705008651746,-202.0,0.00041297,22]
[311272750,1705008651755,-150.653425,0.00041301,30]
[311272751,1705008651765,-153.84,0.00041329,2]
[311272752,1705008651774,-157.49782165,0.00041363,30]
[311272753,1705008651783,-500.0,0.000414,2]
[311272754,1705008651792,-1000.0,0.000414,2]
[311272755,1705008651802,-225.0,0.000414,2]
[311272756,1705008651811,-2310.0,0.000414,2]
[311272757,1705008651820,-541.72,0.00041402,2]
[311272758,1705008651829,-1479.51,0.00041428,60]
[311272759,1705008651839,-150.653425,0.00041452,30]
[311272760,1705008651848,-150.0,0.00041505,2]
[311272761,1705008651857,-6550.586423,0.00041509,2]
[311272762,1705008651868,-500.0,0.0004153,14]
[311272763,1705008651877,-2648.35329845,0.00041555,15]
[311272764,1705008651887,-150.653425,0.00041559,30]
[311272765,1705008651896,-387.058212,0.00041561,30]
[311272766,1705008651906,-171.397116,0.00041561,30]
[311272767,1705008651915,-215.0,0.0004159,2]
[311272768,1705008651925,-1479.51,0.00041693,60]
[311272769,1705008651934,-152.9985358,0.00041751,13]
[311272770,1705008651944,-2100.0,0.00041777,10]
[311272771,1705008651954,-666.0,0.0004178,2]
[311272772,1705008651963,-1000.0,0.00041782,4]
[311272773,1705008651973,-158.65407432,0.00041795,30]
[311272774,1705008651982,-17969.86320688,0.00041827,30]
[311272775,1705008651994,-36718.62020123,0.00041827,30]
[311272776,1705008652513,-400.05625285,0.00028578,2]
[311272880,1705009499550,174.73,0.00021015,2]
[311272888,1705009591467,855.86394758,0.00021015,2]
[311272889,1705009593772,313.03708212,0.00021015,2]
[311272891,1705009609788,313.03708212,0.00021015,2]
[311272892,1705009611472,696.44201955,0.00021015,2]
[311272894,1705009627785,277.53706709,0.00021015,2]
[311272896,1705009637121,-2142.52854897,0.00022534,2]
[311272897,1705009637142,-102.10838115,0.00022535,2]
[311272902,1705009694538,179.999999,0.000137,2]
[311272903,1705009701379,1000.0,0.00021857,2]
[311272905,1705009709508,3122.39981979,0.00021406,2]
[311272906,1705009714712,155.0,0.00022308,2]
[311272908,1705009725364,1000.0,0.00021857,2]
[311272909,1705009727497,3122.39981979,0.00021406,2]
[311272911,1705009732715,155.0,0.00022308,2]
[311272912,1705009741386,1000.0,0.00021857,2]
[311272922,1705009749488,3122.39981979,0.00021404,2]
[311272926,1705009759409,1000.0,0.00021854,2]
[311272927,1705009767867,3122.39981979,0.00021404,2]
[311272928,1705009770718,195.24305808,0.00022431,2]
[311272930,1705009775396,1000.0,0.00021854,2]
[311272936,1705009787505,3122.39981979,0.00021404,2]
[311272939,1705009795372,1000.0,0.00021854,2]
[311272948,1705009807498,1478.43759861,0.00021404,2]
[311272949,1705009811399,1000.0,0.00021965,2]
[311272950,1705009812577,915.19,0.00021444,2]
[311272953,1705009818091,-234.85086633,0.00022525,2]
[311272954,1705009818114,-446.92630179,0.00022526,2]
[311272955,1705009818135,-311.82193235,0.00022527,2]
[311272956,1705009818157,-3324.52712476,0.00022527,2]
[311272957,1705009818179,-628.04059247,0.00022528,2]
[311272958,1705009818200,-24312.16676934,0.00022528,2]
[311272959,1705009818221,-515.6461338,0.00022532,2]
[311272960,1705009818243,-230.2259009,0.00022533,2]
[311272961,1705009818265,-150.0,0.00022534,2]
[311272962,1705009818285,-848.86518306,0.00022535,4]
[311272963,1705009818306,-256.57681672,0.00022536,2]
[311272964,1705009818329,-470.67036639,0.00022546,2]
[311272965,1705009818350,-2555.82757494,0.000226,2]
[311272966,1705009818376,-468.96901353,0.00022644,2]
[311272967,1705009818410,-514.40879808,0.00022645,2]
[311272968,1705009818430,-150.99,0.00022645,2]
[311272969,1705009818453,-499.99,0.00022645,2]
[311272970,1705009818475,-209.49662554,0.00022646,2]
[311272973,1705009820200,-42734.14756265,0.00022646,2]
[311272974,1705009820221,-615.66,0.00022646,2]
[311272975,1705009820243,-1564.5747,0.00022648,2]
[311272976,1705009820265,-6242.0609,0.00022648,2]
[311272977,1705009820291,-4275.71505242,0.00022749,2]
[311272978,1705009820312,-360.1226351,0.0002286,2]
[311272979,1705009820337,-932.80587925,0.00023,2]
[311272988,1705009831586,-1000.0,0.00023195,2]
[311272989,1705009831596,-470.67036628,0.00023196,2]
[311272990,1705009831605,-120.13436466,0.00023362,2]
[311272991,1705009831773,-52.92563534,0.00023362,2]
[311272992,1705009831782,-915.19,0.00023708,2]
[311272993,1705009831791,-470.67036628,0.00023846,2]
[311272994,1705009831800,-200.84765735,0.00024,2]
[311272995,1705009831809,-817.43473582,0.00024247,2]
[311272996,1705009831818,-470.67036628,0.00024497,2]
[311272997,1705009831827,-608.12,0.00024648,2]
[311272998,1705009831836,-32785.59,0.0002468,2]
[311272999,1705009831845,-200.0,0.00024762,2]
[311273000,1705009831854,-210.0,0.00024787,2]
[311273001,1705009831863,-425.42,0.0002487,2]
[311273002,1705009831873,-150.0,0.00024886,2]
[311273003,1705009831882,-29669.459327,0.0002489,2]
[311273004,1705009831891,-46650.3275,0.000249,2]
[311273005,1705009831900,-483.14840147,0.00025,2]
[311273006,1705009831910,-550.0,0.00025,3]
[311273007,1705009831919,-1581.98629386,0.00025,2]
[311273008,1705009831928,-2705.0,0.00025012,2]
[311273009,1705009831938,-500.0,0.00025076,2]
[311273010,1705009831947,-200.0,0.00025079,2]
[311273011,1705009831956,-470.67036628,0.00025147,2]
[311273012,1705009831966,-198.05,0.00025228,2]
[311273013,1705009831975,-5456.05,0.00025632,2]
[311273014,1705009831984,-2000.0,0.00025725,2]
[311273015,1705009831993,-250.0,0.00025733,2]
[311273016,1705009832005,-23900.0,0.00025751,2]
[311273017,1705009832015,-175.7,0.0002578,2]
[311273018,1705009832024,-470.67036628,0.00025797,2]
[311273019,1705009832033,-915.19,0.00025972,2]
[311273020,1705009832042,-2735.97,0.00026001,2]
[311273021,1705009832051,-425.42,0.00026114,2]
[311273022,1705009832061,-150.0,0.00026162,2]
[311273023,1705009832070,-7391.45,0.00026343,2]
[311273024,1705009832079,-263.5,0.00026375,2]
[311273025,1705009832089,-626.25,0.00026431,2]
[311273026,1705009832099,-470.67036628,0.00026447,2]
[311273027,1705009832108,-263.5,0.00026448,2]
[311273028,1705009832117,-263.5,0.0002652,2]
[311273030,1705009832126,-5375.81,0.00026575,2]
[311273032,1705009832136,-263.5,0.00026592,2]
[311273033,1705009832145,-263.5,0.00026665,2]
[311273034,1705009832154,-263.5,0.00026737,2]
[311273035,1705009832163,-263.5,0.00026809,2]
[311273036,1705009832172,-500.0,0.00026824,2]
[311273037,1705009832182,-263.5,0.00026882,2]
[311273038,1705009832191,-263.5,0.00026954,2]
[311273040,1705009832200,-600.0,0.00027,3]
[311273042,1705009832209,-200.0,0.00027005,2]
[311273043,1705009832218,-263.5,0.00027026,2]
[311273044,1705009832227,-8406.65,0.00027053,2]
[311273045,1705009832236,-1109.66,0.00027058,2]
[311273047,1705009832245,-150.33,0.00027077,2]
[311273049,1705009832256,-470.67036628,0.00027097,2]
[311273050,1705009832265,-263.5,0.00027099,2]
[311273051,1705009832274,-322.3974793,0.00027149,2]
[311273052,1705009832283,-263.5,0.00027171,2]
[311273053,1705009832292,-198.83,0.00027218,2]
[311273054,1705009832301,-817.43473583,0.0002723,2]
[311273055,1705009832310,-1000.0,0.0002723,2]
[311273056,1705009832319,-263.5,0.00027243,2]
[311273057,1705009832329,-293.0,0.00027266,2]
[311273058,1705009832338,-155.19155234,0.00027309,2]
[311273059,1705009832347,-492.58,0.00027314,2]
[311273060,1705009832357,-418.68518496,0.00027314,2]
[311273061,1705009832366,-263.5,0.00027316,2]
[311273062,1705009832375,-1578.21583504,0.00027328,2]
[311273063,1705009832384,-290.95665765,0.00027328,2]
[311273064,1705009832393,-243.26769982,0.00027328,2]
[311273065,1705009832402,-536.80126056,0.00027328,4]
[311273066,1705009832411,-939.37733012,0.00027328,2]
[311273067,1705009832421,-171.85542172,0.00027328,2]
[311273068,1705009832430,-248.2795636,0.00027329,2]
[311273069,1705009832439,-164.43,0.00027353,2]
[311273070,1705009832448,-425.42,0.00027357,2]
[311273071,1705009832456,-263.5,0.00027388,2]
[311273072,1705009832465,-477.37,0.00027397,2]
[311273073,1705009832475,-2500.0,0.00027397,4]
[311273074,1705009832484,-250.0,0.00027397,2]
[311273075,1705009832493,-626.25,0.00027409,2]
[311273076,1705009832505,-492.58,0.00027458,2]
[311273077,1705009832514,-263.5,0.0002746,2]
[311273078,1705009832523,-263.5,0.00027533,2]
[311273079,1705009832532,-477.37,0.00027556,2]
[311273080,1705009832541,-492.58,0.00027601,2]
[311273081,1705009832550,-263.5,0.00027605,2]
[311273082,1705009832560,-263.5,0.00027677,2]
[311273083,1705009832570,-477.37,0.00027714,2]
[311273084,1705009832578,-492.58,0.00027745,2]
[311273085,1705009832587,-470.67036628,0.00027748,2]
[311273086,1705009832596,-263.5,0.0002775,2]
[311273087,1705009832605,-150.86,0.0002782,2]
[311273088,1705009832615,-477.37,0.00027872,2]
[311273089,1705009832626,-492.58,0.00027889,2]
[311273090,1705009832636,-687.67126358,0.00028,2]
[311273091,1705009832646,-477.37,0.0002803,2]
[311273092,1705009832655,-492.58,0.00028033,2]
[311273093,1705009832664,-492.58,0.00028176,2]
[311273094,1705009832675,-477.37,0.00028189,2]
[311273095,1705009832684,-166.95,0.00028192,2]
[311273096,1705009832693,-915.19,0.00028236,2]
[311273097,1705009832705,-229.91,0.00028239,2]
[311273098,1705009832716,-202.0,0.00028277,2]
[311273099,1705009832726,-150.86,0.00028295,2]
[311273100,1705009832735,-492.58,0.0002832,2]
[311273101,1705009832744,-477.37,0.00028347,2]
[311273102,1705009832754,-626.25,0.00028388,2]
[311273103,1705009832763,-470.67036628,0.00028398,2]
[311273104,1705009832773,-492.58,0.00028464,2]
[311273105,1705009832782,-477.37,0.00028505,2]
[311273106,1705009832791,-161.78271425,0.00028573,2]
[311273107,1705009832801,-167.05182833,0.00028574,2]
[311273108,1705009832810,-1016.69878254,0.00028574,2]
[311273109,1705009832819,-155.000002,0.00028574,2]
[311273110,1705009832828,-202.73182804,0.00028574,2]
[311273111,1705009832837,-3927.46658202,0.00028574,2]
[311273112,1705009832847,-435.36664987,0.00028575,2]
[311273113,1705009832856,-33711.53322621,0.00028575,2]
[311273114,1705009832866,-5782.30625905,0.00028575,2]
[311273115,1705009832875,-155.78239191,0.00028576,2]
[311273116,1705009832885,-4481.53085452,0.00028576,2]
[311273117,1705009832894,-155.0,0.00028576,2]
[311273118,1705009832903,-26870.99874737,0.00028576,2]
[311273119,1705009832913,-155.56975141,0.00028576,2]
[311273120,1705009832924,-1617.63390836,0.00028578,2]
[311273121,1705009832934,-264.96451937,0.00028578,2]
[311273122,1705009832943,-310.79630964,0.00028578,2]
[311273123,1705009832953,-177.6089,0.00028578,2]
[311273124,1705009832964,-155.0,0.00028578,2]
[311273125,1705009832973,-336.63299697,0.00028578,2]
[311273126,1705009832982,-200.0,0.00028578,2]
[311273127,1705009832992,-508.04025934,0.00028578,2]
[311273128,1705009833001,-684.92408583,0.00028578,2]
[311273129,1705009833011,-2897.77192156,0.00028588,2]
[311273130,1705009833021,-202.36211742,0.00028588,2]
[311273131,1705009833030,-425.42,0.00028601,2]
[311273132,1705009833040,-492.58,0.00028608,2]
[311273133,1705009833050,-477.37,0.00028664,2]
[311273134,1705009833060,-492.58,0.00028751,2]
[311273135,1705009833069,-150.86,0.00028771,2]
[311273136,1705009833079,-477.37,0.00028822,2]
[311273137,1705009833088,-492.58,0.00028895,2]
[311273138,1705009833097,-202.0,0.00028998,3]
[311273139,1705009833106,-160.10630196,0.00029,2]
[311273140,1705009833116,-650.0,0.00029,3]
[311273141,1705009833125,-492.58,0.00029039,2]
[311273142,1705009833134,-470.67036628,0.00029048,2]
[311273143,1705009833144,-492.58,0.00029183,2]
[311273144,1705009833154,-150.86,0.00029247,2]
[311273145,1705009833163,-492.58,0.00029326,2]
[311273146,1705009833172,-626.25,0.00029366,2]
[311273147,1705009833181,-492.58,0.0002947,2]
[311273148,1705009833191,-3295.8524,0.00029483,2]
[311273149,1705009833201,-9989.30842745,0.000295,2]
[311273150,1705009833210,-187.63828412,0.000295,3]
[311273151,1705009833219,-164.82885682,0.00029514,4]
[311273152,1705009833228,-38478.5933,0.00029583,2]
[311273153,1705009833237,-492.58,0.00029614,2]
[311273154,1705009833246,-2506.93398851,0.00029683,30]
[311273155,1705009833258,-156.05101952,0.00029683,2]
[311273156,1705009833268,-300.87488751,0.00029683,2]
[311273157,1705009833277,-270.15196115,0.00029683,2]
[311273158,1705009833286,-270.12495605,0.00029683,2]
[311273159,1705009833295,-155.40206774,0.00029683,2]
[311273160,1705009833304,-40015.55546096,0.00029683,2]
[311273161,1705009833314,-155.2405482,0.00029683,2]
[311273162,1705009833324,-155.99031637,0.00029683,2]
[311273163,1705009833333,-155.0,0.00029683,2]
[311273164,1705009833343,-523.20670564,0.00029683,2]
[311273165,1705009833352,-18988.46719769,0.00029683,2]
[311273166,1705009833362,-2136.08960768,0.00029684,2]
[311273167,1705009833371,-155.0,0.00029684,2]
[311273168,1705009833380,-212.65745871,0.00029684,2]
[311273169,1705009833389,-266.14219942,0.00029684,2]
[311273170,1705009833398,-157.38860694,0.00029684,2]
[311273171,1705009833407,-470.67036628,0.00029698,2]
[311273172,1705009833416,-202.0,0.00029719,4]
[311273173,1705009833425,-150.86,0.00029723,2]
[311273174,1705009833435,-492.58,0.00029758,2]
[311273175,1705009833446,-195.68945489,0.000298,2]
[311273176,1705009833456,-425.42,0.00029844,2]
[311273177,1705009833465,-11646.7938,0.000299,2]
[311273178,1705009833474,-401.3579,0.000299,2]
[311273179,1705009833483,-8327.429,0.000299,2]
[311273180,1705009833492,-1000.0,0.000299,2]
[311273181,1705009833501,-492.58,0.00029901,2]
[311273182,1705009833511,-198.83,0.0002994,2]
[311273183,1705009833520,-263.49556138,0.0002999,2]
[311273184,1705009833529,-210.0,0.00029993,2]
[311273185,1705009833539,-169.51,0.00029999,2]
[311273186,1705009833548,-169.51,0.00029999,2]
[311273187,1705009833557,-169.51,0.00029999,2]
[311273188,1705009833566,-169.51,0.00029999,2]
[311273189,1705009833575,-169.51,0.00029999,2]
[311273190,1705009833584,-11170.39703587,0.0003,4]
[311273191,1705009833594,-179538.4651118,0.0003,4]
[311273192,1705009833602,-155.0,0.0003,2]
[311273193,1705009833612,-9622.66491322,0.0003,2]
[311273194,1705009833621,-2734.96538905,0.0003,2]
[311273195,1705009833631,-582.54733155,0.0003,2]
[311273196,1705009833640,-189.89374987,0.0003,2]
[311273197,1705009833652,-219.62752548,0.0003,4]
[311273198,1705009833664,-351.05725836,0.0003,2]
[311273199,1705009833673,-200.0,0.0003,7]
[311273200,1705009833681,-492.58,0.00030045,2]
[311273201,1705009833691,-10000.0,0.00030137,2]
[311273202,1705009833700,-153.84,0.00030137,2]
[311273203,1705009833710,-150.86,0.00030198,2]
[311273204,1705009833719,-626.25,0.00030345,2]
[311273205,1705009833728,-470.67036628,0.00030349,2]
[311273206,1705009833737,-202.0,0.0003044,5]
[311273207,1705009833746,-915.19,0.00030499,2]
[311273208,1705009833756,-2941.0,0.000306,2]
[311273209,1705009833766,-1000.0,0.00030634,2]
[311273210,1705009833775,-150.86,0.00030674,2]
[311273211,1705009833785,-25702.0,0.000307,2]
[311273212,1705009833794,-164.43,0.00030772,2]
[311273213,1705009833803,-470.67036628,0.00030999,2]
[311273214,1705009833812,-700.0,0.00031,3]
[311273215,1705009833822,-150.0,0.00031,20]
[311273216,1705009833833,-153.84,0.0003105,2]
[311273217,1705009833842,-150.86,0.0003115,2]
[311273218,1705009833852,-202.0,0.00031161,7]
[311273219,1705009833861,-626.25,0.00031323,2]
[311273220,1705009833870,-151.55,0.00031507,2]
[311273221,1705009833879,-150.86,0.00031626,2]
[311273222,1705009833888,-165.05,0.00031644,2]
[311273223,1705009833897,-470.67036628,0.00031649,2]
[311273224,1705009833906,-202.0,0.00031882,8]
[311273225,1705009833915,-165.28125528,0.0003189,2]
[311273226,1705009833924,-2000.0,0.000319,4]
[311273227,1705009833933,-153.84,0.00031963,2]
[311273228,1705009833942,-169.51,0.00031999,2]
[311273229,1705009833951,-169.6,0.00031999,2]
[311273230,1705009833961,-155.0,0.00032,2]
[311273231,1705009833970,-173559.82731972,0.00032,2]
[311273232,1705009833979,-150.86,0.00032101,2]
[311273233,1705009833989,-150.33,0.00032171,2]
[311273234,1705009833998,-1335.1138825,0.00032299,14]
[311273235,1705009834008,-470.67036628,0.00032299,2]
[311273236,1705009834017,-626.25,0.00032301,2]
[311273237,1705009834025,-150.86,0.00032577,2]
[311273238,1705009834035,-202.0,0.00032603,9]
[311273239,1705009834044,-198.83,0.00032662,2]
[311273240,1705009834053,-915.19,0.00032763,2]
[311273241,1705009834063,-166.95,0.00032845,2]
[311273242,1705009834072,-153.84,0.00032877,2]
[311273243,1705009834081,-989.5,0.00032877,15]
[311273244,1705009834091,-150.0,0.0003289,2]
[311273245,1705009834101,-470.67036628,0.00032949,2]
[311273246,1705009834110,-1973.3174974,0.00033,2]
[311273247,1705009834120,-750.0,0.00033,3]
[311273248,1705009834129,-150.86,0.00033053,2]
[311273249,1705009834138,-626.25,0.0003328,2]
[311273250,1705009834147,-202.0,0.00033324,11]
[311273251,1705009834342,-470.67036628,0.000336,2]
[311273252,1705009834352,-153.84,0.0003379,2]
[311273253,1705009834361,-150.0,0.0003389,2]
[311273254,1705009834371,-1000.0,0.00034,4]
[311273255,1705009834381,-201.6432844,0.00034,2]
[311273256,1705009834390,-802.19636617,0.00034,4]
[311273257,1705009834400,-155.0,0.00034,2]
[311273258,1705009834410,-155.0,0.00034,2]
[311273259,1705009834419,-176.05,0.00034,2]
[311273260,1705009834428,-1000.0,0.00034037,2]
[311273261,1705009834437,-202.0,0.00034045,12]
[311273262,1705009834446,-164.43,0.00034191,2]
[311273263,1705009834455,-470.67036628,0.0003425,2]
[311273264,1705009834464,-626.25,0.00034258,2]
[311273265,1705009834474,-151.40112,0.00034498,2]
[311273266,1705009834483,-1704.112522,0.0003452,2]
[311273267,1705009834492,-651.19,0.00034521,2]
[311273268,1705009834501,-176.05,0.00034548,2]
[311273269,1705009834513,-151.40112,0.00034598,2]
[311273270,1705009834524,-180.0,0.00034658,2]
[311273271,1705009834533,-151.40112,0.00034698,2]
[311273272,1705009834542,-153.84,0.00034703,2]
[311273273,1705009834550,-151.55,0.00034703,2]
[311273274,1705009834559,-202.0,0.00034766,13]
[311273275,1705009834568,-2556.168783,0.00034794,2]
[311273276,1705009834576,-151.40112,0.00034798,2]
[311273277,1705009834585,-159.18881728,0.00034831,2]
[311273278,1705009834596,-150.0,0.0003489,2]
[311273279,1705009834605,-151.40112,0.00034898,2]
[311273280,1705009834615,-165.97418147,0.00034899,8]
[311273281,1705009834624,-152.9405965,0.00034899,2]
[311273282,1705009834636,-594.9717253,0.000349,4]
[311273283,1705009834646,-3703.55500817,0.000349,7]
[311273284,1705009834656,-1178.3183993,0.000349,2]
[311273285,1705009834665,-1178.31839914,0.000349,2]
[311273286,1705009834675,-1178.31839914,0.000349,2]
[311273287,1705009834684,-1178.31839914,0.000349,2]
[311273288,1705009834693,-470.67036628,0.000349,2]
[311273289,1705009834702,-1044.56093258,0.000349,2]
[311273290,1705009834713,-1076.70058318,0.000349,2]
[311273291,1705009834724,-3408.225044,0.00034931,2]
[311273292,1705009834734,-263.49556138,0.0003499,2]
[311273293,1705009834744,-197.51049336,0.00034996,2]
[311273294,1705009834754,-169.51,0.00034998,2]
[311273295,1705009834762,-169.51,0.00034998,2]
[311273296,1705009834772,-151.40112,0.00034998,2]
[311273297,1705009834781,-150000.0,0.00034999,3]
[311273298,1705009834790,-150000.0,0.00034999,3]
[311273299,1705009834800,-150000.0,0.00034999,3]
[311273300,1705009834809,-150000.0,0.00034999,3]
[311273301,1705009834818,-108194.38895573,0.00034999,3]
[311273302,1705009834828,-370.64345198,0.00034999,2]
[311273303,1705009834837,-259.04337649,0.00034999,2]
[311273304,1705009834846,-428.66006606,0.00034999,2]
[311273305,1705009834856,-257.19603964,0.00034999,7]
[311273306,1705009834866,-475.74232451,0.00034999,4]
[311273307,1705009834874,-500.0,0.00034999,4]
[311273308,1705009834884,-502.75508928,0.00034999,4]
[311273309,1705009834893,-500.0,0.00034999,4]
[311273310,1705009834902,-503.78395593,0.00034999,4]
[311273311,1705009834912,-527.40537645,0.00034999,4]
[311273312,1705009834921,-2500.0,0.00035,2]
[311273313,1705009834930,-1000.0,0.00035,2]
[311273314,1705009834940,-1804.3259406,0.00035,4]
[311273315,1705009834949,-688706.81421779,0.00035,2]
[311273316,1705009834958,-16499.22203045,0.00035,2]
[311273317,1705009834968,-255.41007841,0.00035,4]
[311273318,1705009834976,-2528.67982368,0.00035,10]
[311273319,1705009834986,-3412.80530229,0.00035,3]
[311273320,1705009834995,-4795.82816389,0.00035,7]
[311273321,1705009835005,-185.50990881,0.00035,4]
[311273322,1705009835015,-619.07656999,0.00035,4]
[311273323,1705009835025,-213343.73974137,0.00035,2]
[311273324,1705009835035,-800.0,0.00035,3]
[311273325,1705009835046,-271.82943818,0.00035,2]
[311273326,1705009835056,-915.19,0.00035027,2]
[311273327,1705009835066,-4260.281306,0.00035068,2]
[311273328,1705009835076,-176.05,0.00035096,2]
[311273329,1705009835085,-151.40112,0.00035098,2]
[311273330,1705009835096,-151.40112,0.00035198,2]
[311273331,1705009835105,-626.25,0.00035237,2]
[311273332,1705009835115,-151.40112,0.00035298,2]
[311273333,1705009835125,-5964.393828,0.00035342,2]
[311273334,1705009835134,-155.0,0.0003537,2]
[311273335,1705009835144,-151.40112,0.00035398,2]
[311273336,1705009835153,-202.0,0.00035487,15]
[311273337,1705009835164,-151.40112,0.00035498,2]
[311273338,1705009835174,-153.84,0.00035616,2]
[311273339,1705009835183,-176.05,0.00035644,2]
[311273340,1705009835193,-151.40112,0.00035698,2]
[311273341,1705009835203,-3703.55500812,0.00035764,8]
[311273342,1705009835213,-651.19,0.00035798,2]
[311273343,1705009835223,-151.40112,0.00035798,2]
[311273344,1705009835232,-152.94059647,0.00035889,2]
[311273345,1705009835242,-150.0,0.0003589,2]
[311273346,1705009835252,-151.40112,0.00035898,2]
[311273347,1705009835262,-195.0,0.00035917,2]
[311273348,1705009835272,-151.40112,0.00035998,2]
[311273349,1705009835281,-300.0,0.00036,37]
[311273350,1705009835291,-555.40112,0.00036098,4]
[311273351,1705009835301,-176.05,0.00036192,2]
[311273352,1705009835312,-202.0,0.00036208,16]
[311273353,1705009835321,-626.25,0.00036215,2]
[311273354,1705009835331,-1178.31839914,0.00036216,2]
[311273355,1705009835341,-555.40112,0.00036298,4]
[311273356,1705009835350,-200.0,0.00036317,5]
[311273357,1705009835359,-777.40112,0.00036398,6]
[311273358,1705009835369,-555.40112,0.00036498,4]
[311273359,1705009835378,-20443.57781981,0.000365,6]
[311273360,1705009835388,-153.84,0.0003653,2]
[311273361,1705009835397,-256.74226361,0.0003656,8]
[311273362,1705009835407,-256.74226348,0.0003656,8]
[311273363,1705009835416,-256.74226348,0.0003656,8]
[311273364,1705009835425,-777.40112,0.00036598,6]
[311273365,1705009835434,-974.7193247,0.00036613,15]
[311273366,1705009835452,-14.7806753,0.00036613,15]
[311273367,1705009835461,-428.79714451,0.00036627,9]
[311273368,1705009835489,-3274.75786361,0.00036627,9]
[311273369,1705009835499,-555.40112,0.00036698,4]
[311273370,1705009835509,-2000.0,0.000367,2]
[311273371,1705009835519,-155.0,0.0003674,2]
[311273372,1705009835528,-176.05,0.0003674,2]
[311273373,1705009835538,-777.40112,0.00036798,6]
[311273374,1705009835548,-152.94059647,0.0003688,2]